bitfinex-derivatives/quotes_SOLF0:USTF0_20251020
["timestamp","ask_amount","ask_price","bid_price","bid_amount"]
[1760943598286,2.7,193.91,193.84,7.2518]
[1760943598486,4.13595401,193.9,193.84,7.2518]
[1760943598688,2.7,193.91,193.84,7.2518]
[1760943598983,4.13599677,193.9,193.84,7.2518]
[1760943599183,2.7,193.88,193.84,4.6418]
[1760943599378,2.7,193.88,193.85,2.61]
[1760943599889,2.7,193.91,193.84,4.6418]
[1760943600084,2.7,193.89,193.84,4.6418]
[1760943600280,2.7,193.91,193.84,4.6418]
[1760943600483,2.7,193.89,193.83,5.93372986]
[1760943600684,2.7,193.87,193.83,2.61]
[1760943600888,2.7,193.87,193.84,2.61]
[1760943601585,4.78923265,193.91,193.8,45.53]
[1760943601783,4.78923265,193.89,193.8,45.53]
[1760943601987,2.7,193.87,193.8,45.53]
[1760943602187,9.06965974,193.86,193.8,45.53]
[1760943602387,9.06921169,193.85,193.8,42.92]
[1760943602590,2.7,193.83,193.8,42.92]
[1760943602785,4.78923265,193.87,193.8,42.92]
[1760943602989,2.7,193.82,193.72,2.61]
[1760943603192,2.7,193.8,193.72,2.61]
[1760943603592,2.7,193.83,193.75,2.61]
[1760943603893,9.0644638,193.82,193.75,2.61]
[1760943604092,4.13597351,193.81,193.75,2.61]
[1760943604289,2.7,193.83,193.75,2.61]
[1760943604597,4.13365719,193.82,193.75,2.61]
[1760943604793,4.13365719,193.81,193.75,2.61]
[1760943604989,2.7,193.83,193.75,2.61]
[1760943605190,4.13365737,193.82,193.75,2.61]
[1760943605395,4.13365737,193.81,193.75,2.61]
[1760943605688,7.48923265,193.86,193.75,2.61]
[1760943605890,9.05514427,193.85,193.77,2.61]
[1760943606087,4.13169588,193.84,193.77,2.61]
[1760943606289,2.7,193.86,193.8,2.61]
[1760943606594,2.7,193.84,193.76,2.61]
[1760943607097,2.7,193.87,193.79,2.61]
[1760943607392,4.13002816,193.86,193.79,2.61]
[1760943607591,2.7,193.87,193.79,2.61]
[1760943607794,4.12998581,193.86,193.79,2.61]
[1760943607984,6.83002834,193.85,193.79,2.61]
[1760943608187,3.32372986,193.88,193.76,21.63]
[1760943608188,6.83011528,193.84,193.76,21.63]
[1760943608393,3.32372986,193.88,193.76,21.63]
[1760943608394,2.7,193.82,193.76,21.63]
[1760943609683,11.52568989,193.86,193.77,2.61]
[1760943609887,9.05051501,193.85,193.77,2.61]
[1760943610090,4.12908362,193.84,193.77,2.61]
[1760943610289,7.3414,193.86,193.77,2.61]
[1760943610589,9.04972895,193.85,193.77,2.61]
[1760943610897,6.82878542,193.84,193.77,2.61]
[1760943611096,2.7,193.84,193.77,2.61]
[1760943611996,2.7,193.84,193.76,19.02]
[1760943611997,2.7,193.82,193.76,19.02]
[1760943612592,4.6419,193.84,193.77,2.61]
[1760943612792,4.12814658,193.83,193.77,2.61]
[1760943613092,4.6419,193.84,193.77,2.61]
[1760943613295,4.12800968,193.83,193.77,2.61]
[1760943613494,4.6419,193.84,193.77,2.61]
[1760943613695,4.12800987,193.83,193.77,2.61]
[1760943613887,2.7,193.85,193.77,2.61]
[1760943614093,4.12792428,193.84,193.77,2.61]
[1760943614288,4.6413,193.87,193.78,2.71]
[1760943614489,4.12750167,193.86,193.79,2.71]
[1760943614688,2.59,193.88,193.79,2.71]
[1760943614894,4.12733201,193.87,193.79,2.71]
[1760943615096,4.12733201,193.86,193.79,2.71]
[1760943615293,2.59,193.88,193.79,2.71]
[1760943615493,4.78923265,193.91,193.79,2.71]
[1760943615494,2.59,193.86,193.79,2.71]
[1760943616404,10.55532986,193.86,193.79,2.71]
[1760943616898,4.12773727,193.85,193.79,2.71]
[1760943617096,2.65,193.84,193.74,4.6442]
[1760943617291,2.65,193.84,193.75,2.69]
[1760943617893,2.65,193.82,193.75,2.69]
[1760943618295,4.78923265,193.91,193.77,2.69]
[1760943618497,9.04528494,193.9,193.79,3.32372986]
[1760943618694,4.12706129,193.89,193.8,2.69]
[1760943618890,4.6407,193.89,193.8,2.69]
[1760943619091,4.12697922,193.88,193.8,2.69]
[1760943619295,4.6407,193.89,193.8,2.69]
[1760943619597,7.2911,193.87,193.8,2.69]
[1760943619806,10.61482986,193.87,193.8,2.69]
[1760943620796,7.2911,193.87,193.8,2.69]
[1760943621493,4.6416,193.85,193.76,2.69]
[1760943621698,2.65,193.84,193.76,2.69]
[1760943621892,2.65,193.82,193.72,2.69]
[1760943622402,3.32372986,193.84,193.72,2.69]
[1760943622403,2.65,193.8,193.72,2.69]
[1760943623404,4.643,193.79,193.72,2.69]
[1760943623607,2.65,193.78,193.72,2.69]
[1760943624402,4.6436,193.77,193.69,6.56]
[1760943624605,2.65,193.76,193.69,6.56]
[1760943627809,2.65,193.75,193.69,6.56]
[1760943630112,7.2933,193.79,193.7,2.69]
[1760943630410,4.13583366,193.78,193.7,2.69]
[1760943630611,4.13583366,193.77,193.7,2.69]
[1760943630808,7.294,193.75,193.69,6.56]
[1760943631015,2.65,193.74,193.65,3.02828324]
[1760943631214,2.65,193.74,193.65,2.12994053]
[1760943631517,2.65,193.72,193.65,2.12994053]
[1760943632107,2.65,193.72,193.66,2.12994053]
[1760943633108,2.65,193.72,193.68,2.12994053]
[1760943633308,2.65,193.72,193.69,2.69]
[1760943633506,2.65,193.72,193.68,2.12994053]
[1760943633705,2.65,193.72,193.65,2.69]
[1760943633706,2.65,193.72,193.66,2.12994053]
[1760943633906,2.65,193.76,193.69,2.69]
[1760943634909,2.65,193.76,193.7,2.12994053]
[1760943635114,2.65,193.83,193.74,4.81994053]
[1760943635310,4.12927095,193.82,193.76,2.12994053]
[1760943635514,2.65,193.82,193.76,2.12994053]
[1760943636317,2.65,193.82,193.74,4.81994053]
[1760943636513,2.65,193.76,193.68,2.12994053]
[1760943636712,2.65,193.76,193.66,2.69]
[1760943636913,2.12994053,193.73,193.66,2.69]
[1760943637722,4.77994053,193.73,193.66,2.69]
[1760943638921,2.65,193.7,193.66,2.69]
[1760943639628,2.12994053,193.69,193.66,2.69]
[1760943641024,2.12994053,193.69,193.62,2.69]
[1760943641225,2.12994053,193.67,193.62,2.69]
[1760943641431,2.12994053,193.65,193.59,179.29]
[1760943641932,2.12994053,193.65,193.59,45.69]
[1760943642230,2.12994053,193.62,193.59,45.69]
[1760943642430,2.65,193.61,193.56,0.89878354]
[1760943642630,2.12994053,193.59,193.53,2.69]
[1760943643231,7.2964,193.66,193.54,2.69]
[1760943643431,2.12994053,193.63,193.54,2.69]
[1760943644227,4.77994053,193.63,193.54,2.69]
[1760943644832,4.77994053,193.63,193.55,2.12994053]
[1760943645436,2.65,193.63,193.56,2.69]
[1760943646042,2.65,193.63,193.56,4.81994053]
[1760943646732,2.12994053,193.67,193.55,2.69]
[1760943647037,4.12592882,193.66,193.6,2.69]
[1760943647237,4.6462,193.66,193.6,2.69]
[1760943648036,2.75,193.64,193.6,2.74]
[1760943648433,2.75,193.65,193.57,2.12994053]
[1760943648736,4.87994053,193.65,193.57,2.12994053]
[1760943648942,9.52654053,193.65,193.57,2.12994053]
[1760943649429,9.52684053,193.63,193.56,12.36]
[1760943650432,2.75,193.62,193.56,9.62]
[1760943654335,2.75,193.6,193.53,2.12994053]
[1760943655439,2.75,193.6,193.52,3.02893304]
[1760943655743,4.87994053,193.6,193.52,3.02893304]
[1760943655939,4.87994053,193.6,193.52,2.12994053]
[1760943656739,2.75,193.6,193.54,2.12994053]
[1760943657132,2.75,193.6,193.53,2.74]
[1760943657335,2.75,193.6,193.54,2.12994053]
[1760943658834,2.75,193.6,193.55,4.86994053]
[1760943659436,4.6471,193.62,193.55,4.86994053]
[1760943659638,2.75,193.61,193.55,4.86994053]
[1760943660037,2.75,193.61,193.51,4.6497]
[1760943660038,2.75,193.61,193.5,2.74]
[1760943660238,4.6476,193.6,193.53,2.12994053]
[1760943661231,2.75,193.59,193.52,2.74]
[1760943661838,4.78923265,193.68,193.54,2.12994053]
[1760943661839,9.52704053,193.62,193.54,2.12994053]
[1760943662140,9.52704053,193.62,193.54,4.86994053]
[1760943662345,2.75,193.6,193.54,4.86994053]
[1760943662541,2.75,193.6,193.54,2.74]
[1760943662743,4.87994053,193.6,193.51,4.86994053]
[1760943663240,4.6481,193.58,193.51,4.86994053]
[1760943663441,2.12994053,193.56,193.51,2.74]
[1760943663740,2.75,193.55,193.51,2.74]
[1760943664538,2.12994053,193.56,193.51,2.74]
[1760943664842,2.12994053,193.54,193.48,45.76]
[1760943666141,2.75,193.51,193.48,45.76]
[1760943666648,2.75,193.51,193.48,43.02]
[1760943666937,4.87994053,193.49,193.44,2.74]
[1760943667131,2.75,193.48,193.42,2.74]
[1760943667443,2.12994053,193.49,193.42,2.74]
[1760943667641,4.87994053,193.46,193.42,2.74]
[1760943667841,2.12994053,193.46,193.37,2.74]
[1760943668042,2.75,193.49,193.38,2.74]
[1760943668242,4.87994053,193.49,193.39,2.74]
[1760943669036,2.12994053,193.46,193.39,2.74]
[1760943670743,4.87994053,193.49,193.39,2.74]
[1760943672539,2.75,193.49,193.4,2.74]
[1760943672739,2.12994053,193.48,193.4,2.74]
[1760943673152,2.75,193.49,193.4,2.74]
[1760943682451,2.12994053,193.48,193.4,2.74]
[1760943682652,2.81,193.47,193.4,2.74]
[1760943682849,2.12994053,193.45,193.4,2.74]
[1760943683049,2.12994053,193.45,193.37,9.9]
[1760943683354,2.12994053,193.42,193.37,9.9]
[1760943683652,2.81,193.41,193.36,2.74]
[1760943683852,4.93994053,193.42,193.36,2.74]
[1760943684952,2.81,193.42,193.36,2.74]
[1760943685155,2.81,193.4,193.36,2.74]
[1760943685350,2.81,193.4,193.33,3.63978281]
[1760943685957,2.81,193.4,193.33,8.29358281]
[1760943686557,2.81,193.4,193.33,7.3938]
[1760943688954,2.81,193.4,193.33,2.74]
[1760943689660,2.12994053,193.41,193.33,2.74]
[1760943690162,4.93994053,193.43,193.33,2.74]
[1760943690359,4.93994053,193.43,193.35,2.74]
[1760943690959,4.93994053,193.43,193.35,4.86994053]
[1760943691661,2.81,193.43,193.35,4.86994053]
[1760943691866,2.81,193.47,193.38,2.74]
[1760943692050,4.10742608,193.46,193.38,4.86994053]
[1760943692257,4.10742608,193.45,193.38,4.86994053]
[1760943692561,2.12994053,193.46,193.38,2.74]
[1760943692857,2.81,193.44,193.38,2.74]
[1760943693751,2.81,193.44,193.35,22.28]
[1760943693955,2.81,193.44,193.35,2.74]
[1760943694862,2.81,193.44,193.35,7.3934]
[1760943695055,2.81,193.44,193.36,2.74]
[1760943700667,3.33922596,193.46,193.37,2.74]
[1760943700862,2.81,193.48,193.37,2.74]
[1760943701063,2.81,193.48,193.39,2.74]
[1760943701966,2.81,193.48,193.39,7.3924]
[1760943702166,2.81,193.47,193.39,7.3924]
[1760943704066,2.81,193.47,193.39,2.74]
[1760943708768,2.81,193.47,193.4,43.02]
[1760943709467,2.81,193.47,193.41,2.74]
[1760943709866,2.71,193.5,193.41,2.74]
[1760943710967,4.649,193.54,193.43,2.74]
[1760943711170,6.84369369,193.53,193.43,2.74]
[1760943711377,4.13369369,193.52,193.43,2.74]
[1760943711577,2.71,193.53,193.43,2.74]
[1760943711774,4.13428645,193.52,193.45,6.07922596]
[1760943712068,3.33922596,193.57,193.46,2.74]
[1760943712069,2.71,193.57,193.46,2.74]
[1760943712274,4.13386242,193.56,193.49,2.74]
[1760943712474,4.13386242,193.55,193.49,2.74]
[1760943712776,2.71,193.57,193.49,2.74]
[1760943712978,4.13255786,193.56,193.49,2.74]
[1760943713170,2.71,193.57,193.49,2.74]
[1760943713375,4.13616914,193.56,193.49,2.74]
[1760943713572,2.71,193.57,193.49,2.74]
[1760943713778,4.13591463,193.56,193.5,43.02]
[1760943713973,2.71,193.57,193.5,43.02]
[1760943714175,4.13591444,193.56,193.5,43.02]
[1760943714376,2.71,193.57,193.5,43.02]
[1760943714575,2.71,193.57,193.49,2.74]
[1760943714777,2.71,193.57,193.51,43.02]
[1760943714977,2.71,193.57,193.51,45.76]
[1760943715179,2.71,193.57,193.51,2.74]
[1760943715379,2.71,193.59,193.52,43.02]
[1760943715577,4.13265911,193.58,193.52,7.92]
[1760943715776,6.84265911,193.57,193.48,2.74]
[1760943715972,2.71,193.57,193.49,15.18]
[1760943716177,2.71,193.57,193.5,24.16]
[1760943716382,2.71,193.61,193.51,2.74]
[1760943716582,4.13105612,193.6,193.51,2.74]
[1760943716783,2.71,193.61,193.51,2.74]
[1760943716984,4.13084497,193.6,193.51,2.74]
[1760943717185,2.71,193.61,193.51,2.74]
[1760943717679,4.78923265,193.65,193.5,32.14912596]
[1760943717680,2.71,193.65,193.54,2.74]
[1760943717880,4.12806134,193.64,193.54,2.74]
[1760943718079,2.71,193.65,193.54,2.74]
[1760943718278,4.12806023,193.64,193.54,2.74]
[1760943718583,2.71,193.65,193.54,2.74]
[1760943718784,4.12483303,193.64,193.54,4.6489]
[1760943718983,2.71,193.65,193.55,2.74]
[1760943719382,2.71,193.65,193.57,2.74]
[1760943719686,2.71,193.69,193.6,2.74]
[1760943719879,2.71,193.69,193.61,27.84]
[1760943720287,2.71,193.69,193.62,2.74]
[1760943720989,3.33922596,193.65,193.54,2.74]
[1760943721283,3.33922596,193.62,193.54,5.78]
[1760943721581,8.12845861,193.68,193.49,13.0]
[1760943721582,2.71,193.58,193.49,13.0]
[1760943721786,2.71,193.58,193.47,17.1]
[1760943722090,2.71,193.52,193.41,2.74]
[1760943722287,3.33922596,193.53,193.42,43.02]
[1760943722487,2.71,193.52,193.41,2.74]
[1760943722784,6.04922596,193.5,193.41,2.74]
[1760943722986,2.71,193.5,193.41,2.74]
[1760943725190,2.71,193.53,193.41,2.74]
[1760943726081,2.71,193.53,193.42,2.74]
[1760943726987,2.71,193.53,193.41,4.6521]
[1760943726988,2.71,193.53,193.44,2.74]
[1760943727689,13.46836637,193.62,193.38,2.74]
[1760943727690,2.71,193.55,193.38,2.74]
[1760943727889,9.11212737,193.54,193.39,43.02]
[1760943728090,2.71,193.52,193.39,43.02]
[1760943728393,2.71,193.56,193.39,43.02]
[1760943728595,2.71,193.54,193.39,43.02]
[1760943728893,4.12092538,193.53,193.4,43.04]
[1760943729096,3.98402259,193.57,193.4,43.04]
[1760943729289,4.6501,193.5,193.4,43.04]
[1760943729490,2.71,193.49,193.4,43.04]
[1760943729795,2.71,193.49,193.4,45.78]
[1760943730196,2.71,193.54,193.4,43.04]
[1760943730394,9.11472523,193.53,193.4,43.04]
[1760943730696,4.6509,193.46,193.4,43.04]
[1760943730888,2.71,193.45,193.4,43.04]
[1760943731690,4.6509,193.46,193.4,43.04]
[1760943731894,2.71,193.45,193.4,43.04]
[1760943732091,2.71,193.46,193.4,43.04]
[1760943732394,4.78923265,193.54,193.4,45.78]
[1760943732591,2.71,193.51,193.41,43.06]
[1760943732794,2.64,193.49,193.41,43.06]
[1760943734296,2.64,193.49,193.42,2.66]
[1760943734493,7.2894,193.53,193.42,2.66]
[1760943734694,7.2894,193.53,193.43,2.66]
[1760943735197,4.78923265,193.57,193.41,43.06]
[1760943735198,2.64,193.5,193.41,43.06]
[1760943735393,2.64,193.53,193.41,43.06]
[1760943735592,4.6507,193.47,193.41,43.06]
[1760943735789,7.2907,193.47,193.41,43.06]
[1760943735992,2.64,193.47,193.41,43.06]
[1760943736594,4.78923265,193.52,193.41,43.06]
[1760943736795,2.64,193.5,193.41,43.06]
[1760943736993,2.64,193.48,193.41,43.06]
[1760943737188,2.64,193.48,193.37,45.74]
[1760943737597,4.6513,193.45,193.37,45.74]
[1760943737998,4.99818915,193.5,193.38,2.71]
[1760943738199,4.12483014,193.49,193.39,2.71]
[1760943738501,4.6499,193.51,193.39,2.71]
[1760943738702,2.78,193.52,193.39,2.71]
[1760943738899,2.78,193.5,193.39,2.71]
[1760943739202,4.6502,193.49,193.39,2.71]
[1760943739893,4.6521,193.41,193.32,2.71]
[1760943740198,2.78,193.42,193.32,2.71]
[1760943740594,9.02589271,193.48,193.32,2.71]
[1760943740595,4.6517,193.43,193.32,2.71]
[1760943742100,2.78,193.46,193.32,2.71]
[1760943742304,9.6492202,193.48,193.39,2.71]
[1760943742601,4.6505,193.48,193.4,43.3]
[1760943743505,2.78,193.46,193.32,2.71]
[1760943743707,4.0269111,193.49,193.32,2.71]
[1760943743708,2.78,193.44,193.32,2.71]
[1760943744003,4.6524,193.4,193.32,2.71]
[1760943744505,4.6529,193.38,193.32,2.71]
[1760943748204,2.78,193.37,193.29,43.36]
[1760943748806,4.6533,193.36,193.29,43.36]
[1760943749306,2.78,193.35,193.28,43.34]
[1760943750107,7.4328,193.39,193.29,2.71]
[1760943752202,2.78,193.39,193.29,7.3649]
[1760943752407,2.78,193.39,193.3,2.71]
[1760943752609,8.98155403,193.45,193.3,2.71]
[1760943752807,2.78,193.44,193.32,4.654]
[1760943753105,2.78,193.44,193.33,2.71]
[1760943753699,2.78,193.44,193.35,2.71]
[1760943754707,2.78,193.44,193.36,5.34175972]
[1760943756000,2.78,193.44,193.37,42.02]
[1760943756404,2.78,193.48,193.38,2.71]
[1760943757705,7.4306,193.48,193.38,2.71]
[1760943759509,7.4306,193.48,193.39,43.36]
[1760943759908,4.87031225,193.53,193.25,2.71]
[1760943759909,2.78,193.52,193.25,2.71]
[1760943760215,2.78,193.49,193.32,2.71]
[1760943761013,7.4309,193.46,193.35,2.71]
[1760943761214,4.87031225,193.52,193.36,34.38]
[1760943761413,2.78,193.49,193.36,34.38]
[1760943761612,4.10966085,193.48,193.36,34.38]
[1760943761810,2.78,193.46,193.36,34.38]
[1760943762005,2.78,193.48,193.36,34.38]
[1760943762209,4.10985245,193.47,193.36,34.38]
[1760943762415,4.6515,193.44,193.36,34.38]
[1760943762614,7.4315,193.44,193.36,34.38]
[1760943767028,7.4315,193.44,193.37,2.71]
[1760943768130,7.5219,193.42,193.37,2.71]
[1760943768432,2.87,193.46,193.36,37.12]
[1760943768732,4.6518,193.43,193.36,37.12]
[1760943770930,4.6518,193.43,193.36,2.74]
[1760943779539,2.87,193.42,193.36,2.74]
[1760943780435,7.5221,193.42,193.36,2.74]
[1760943780632,2.87,193.42,193.31,9.99625972]
[1760943780834,2.87,193.36,193.3,2.13781833]
[1760943781034,2.87,193.36,193.28,48.11781833]
[1760943781434,2.87,193.36,193.28,45.98]
[1760943781840,2.87,193.36,193.28,2.74]
[1760943782041,4.6538,193.35,193.28,2.74]
[1760943782343,4.6538,193.35,193.28,4.87781833]
[1760943782740,4.6538,193.35,193.28,2.74]
[1760943783240,2.87,193.34,193.28,2.74]
[1760943784641,2.87,193.37,193.28,2.74]
[1760943784845,2.87,193.41,193.3,2.74]
[1760943785140,9.06791476,193.4,193.3,2.74]
[1760943785345,4.12878988,193.39,193.3,2.74]
[1760943785540,2.87,193.41,193.3,2.74]
[1760943785740,13.71967853,193.4,193.3,2.74]
[1760943785945,2.87,193.41,193.3,2.74]
[1760943786141,4.12842354,193.4,193.3,2.74]
[1760943786444,4.6531,193.37,193.31,43.24]
[1760943787545,2.87,193.39,193.31,43.24]
[1760943787743,2.87,193.42,193.35,15.0]
[1760943787942,2.87,193.4,193.35,15.0]
[1760943788143,2.87,193.38,193.35,15.0]
[1760943788849,4.6521,193.41,193.35,15.0]
[1760943789046,6.99859034,193.4,193.35,15.0]
[1760943789251,7.65923265,193.44,193.36,2.74]
[1760943789551,13.16938979,193.43,193.36,2.74]
[1760943789754,9.06666472,193.42,193.36,2.74]
[1760943789952,4.12829089,193.41,193.35,17.74]
[1760943790247,2.87,193.43,193.35,61.0]
[1760943790440,9.06656178,193.42,193.35,61.0]
[1760943790643,4.12825442,193.41,193.35,61.0]
[1760943790843,7.5218,193.43,193.35,61.0]
[1760943791044,4.12821139,193.42,193.36,45.98]
[1760943791244,7.65923265,193.46,193.36,45.98]
[1760943791441,4.6516,193.44,193.36,45.98]
[1760943791644,9.06622509,193.43,193.36,45.98]
[1760943791851,4.12813993,193.42,193.36,45.98]
[1760943792041,7.5218,193.43,193.36,45.98]
[1760943792346,4.12835241,193.42,193.36,45.98]
[1760943792545,4.6512,193.45,193.36,45.98]
[1760943792848,9.06636991,193.44,193.36,45.98]
[1760943793050,9.06636991,193.43,193.36,45.98]
[1760943793251,4.12820307,193.42,193.36,45.98]
[1760943793450,7.65923265,193.46,193.36,45.98]
[1760943793651,13.17078295,193.45,193.36,45.98]
[1760943793850,13.17078295,193.44,193.36,45.98]
[1760943794150,13.71929727,193.43,193.37,2.74]
[1760943794452,4.12876349,193.42,193.36,43.24]
[1760943794645,4.6517,193.43,193.37,2.74]
[1760943794848,4.6517,193.43,193.36,45.98]
[1760943794849,4.12922656,193.42,193.36,45.98]
[1760943795053,4.6517,193.43,193.36,45.98]
[1760943795242,4.12978776,193.42,193.36,45.98]
[1760943795447,4.6517,193.43,193.36,45.98]
[1760943795643,4.12978776,193.42,193.36,45.98]
[1760943795848,7.5211,193.46,193.36,45.98]
[1760943796054,9.06913167,193.45,193.36,45.98]
[1760943796354,4.12961769,193.44,193.36,45.98]
[1760943796551,4.12961769,193.43,193.37,2.74]
[1760943796750,4.6513,193.45,193.37,2.74]
[1760943796957,4.12964262,193.44,193.37,2.74]
[1760943797151,4.6513,193.45,193.37,2.74]
[1760943797454,4.13010425,193.44,193.38,43.2]
[1760943797655,4.6513,193.45,193.39,2.74]
[1760943797954,4.12993475,193.44,193.41,2.74]
[1760943798149,7.3013,193.45,193.41,27.52]
[1760943798350,4.12975571,193.44,193.41,27.52]
[1760943798554,2.65,193.44,193.41,2.74]
[1760943799252,2.65,193.44,193.4,45.94]
[1760943799460,2.65,193.44,193.4,2.74]
[1760943799656,2.65,193.44,193.4,45.94]
[1760943800059,4.6513,193.45,193.36,2.74]
[1760943800356,4.6507,193.47,193.38,2.74]
[1760943800661,4.12920043,193.46,193.38,2.74]
[1760943800853,4.6507,193.47,193.4,2.74]
[1760943801053,4.12920024,193.46,193.41,43.18]
[1760943801254,7.3007,193.47,193.42,2.74]
[1760943801456,4.12881703,193.46,193.42,45.92]
[1760943801656,7.3007,193.47,193.42,45.92]
[1760943801851,4.12881703,193.46,193.42,2.74]
[1760943802154,4.6502,193.49,193.42,45.92]
[1760943802453,4.12858751,193.48,193.42,43.18]
[1760943802655,2.65,193.5,193.42,45.92]
[1760943802856,9.06685012,193.49,193.42,45.92]
[1760943803057,4.12837318,193.48,193.42,45.92]
[1760943803258,4.6504,193.49,193.42,45.92]
[1760943803453,4.12383513,193.48,193.43,43.18]
[1760943803756,2.65,193.48,193.43,45.92]
[1760943803956,2.65,193.48,193.43,43.18]
[1760943804155,2.65,193.48,193.43,45.92]
[1760943804352,2.65,193.48,193.43,43.18]
[1760943804557,2.65,193.48,193.44,2.74]
[1760943805362,2.65,193.48,193.44,45.92]
[1760943805559,2.65,193.48,193.44,45.9]
[1760943805759,4.12292163,193.47,193.44,45.9]
[1760943805960,2.65,193.48,193.44,45.9]
[1760943806161,4.12292163,193.47,193.44,45.9]
[1760943806359,2.65,193.48,193.44,2.74]
[1760943806560,4.12263177,193.47,193.44,45.9]
[1760943806760,2.65,193.48,193.44,45.9]
[1760943806961,4.12263177,193.47,193.44,45.9]
[1760943807258,2.65,193.48,193.44,2.74]
[1760943807458,4.12216452,193.47,193.44,45.88]
[1760943807660,2.65,193.48,193.44,45.88]
[1760943807858,4.12216452,193.47,193.44,2.74]
[1760943808061,2.65,193.48,193.44,45.88]
[1760943808259,4.1219519,193.47,193.44,45.88]
[1760943808461,2.65,193.48,193.44,2.74]
[1760943808763,4.1217267,193.47,193.44,2.74]
[1760943808962,2.65,193.48,193.44,21.18]
[1760943809164,4.6504,193.49,193.45,2.74]
[1760943809466,4.12119025,193.48,193.45,2.74]
[1760943809667,9.43593566,193.51,193.43,2.74]
[1760943809966,4.6497,193.51,193.45,2.74]
[1760943810762,4.6497,193.51,193.47,2.74]
[1760943810961,4.6497,193.51,193.46,45.25623566]
[1760943811257,4.6497,193.51,193.47,43.14]
[1760943811461,4.6497,193.51,193.48,2.74]
[1760943812767,4.6497,193.51,193.48,43.12]
[1760943812962,4.6497,193.51,193.49,2.74]
[1760943813366,4.6492,193.53,193.49,2.74]
[1760943813562,4.6492,193.53,193.48,45.25623566]
[1760943813861,4.6492,193.53,193.49,2.74]
[1760943814063,4.6492,193.53,193.5,45.86]
[1760943814267,4.6492,193.53,193.5,43.12]
[1760943814567,2.65,193.52,193.5,43.12]
[1760943814767,2.65,193.52,193.46,2.74]
[1760943814963,2.65,193.52,193.48,2.74]
[1760943815469,2.65,193.52,193.47,43.12]
[1760943815670,4.6492,193.53,193.47,43.12]
[1760943815963,4.6492,193.53,193.47,45.86]
[1760943816365,7.2988,193.55,193.48,2.74]
[1760943816566,4.11214508,193.54,193.48,2.74]
[1760943816865,7.2988,193.55,193.48,2.74]
[1760943817266,7.2988,193.55,193.49,43.1]
[1760943817464,7.2988,193.55,193.48,2.74]
[1760943817660,7.2988,193.55,193.49,43.1]
[1760943817860,4.6488,193.55,193.5,43.1]
[1760943818068,2.65,193.53,193.5,43.1]
[1760943818459,2.65,193.52,193.5,43.1]